bitfinex-derivatives/quotes_BTCF0:USTF0_20241214
["timestamp","ask_amount","ask_price","bid_price","bid_amount"]
[1734140359094,0.11680766,102200.0,102190.0,0.34748201]
[1734140359298,0.11688498,102200.0,102190.0,0.34748201]
[1734140359494,7.732e-05,102200.0,102190.0,0.34748201]
[1734140360001,0.11688498,102200.0,102190.0,0.34748201]
[1734140360391,7.732e-05,102200.0,102190.0,0.79979021]
[1734140360592,7.732e-05,102200.0,102190.0,0.89208201]
[1734140362502,7.732e-05,102200.0,102190.0,0.784321]
[1734140362898,7.732e-05,102200.0,102190.0,0.423521]
[1734140363115,0.048921,102190.0,102180.0,0.16955241]
[1734140363398,0.409721,102190.0,102170.0,0.4421382]
[1734140363699,0.6846292,102190.0,102170.0,0.2551382]
[1734140363894,0.99143686,102190.0,102170.0,0.2551382]
[1734140364301,0.89992866,102190.0,102170.0,0.2551382]
[1734140365006,0.89992866,102190.0,102170.0,0.3466464]
[1734140365598,0.3734,102190.0,102170.0,0.3466464]
[1734140365901,0.3734,102190.0,102170.0,0.47342466]
[1734140366388,0.048926,102180.0,102170.0,0.13638646]
[1734140366589,0.61804186,102180.0,102150.0,0.51926591]
[1734140366894,0.3608,102170.0,102150.0,0.05899492]
[1734140367088,0.61804386,102180.0,102150.0,0.41979492]
[1734140367603,0.3608,102170.0,102150.0,0.63828533]
[1734140367803,0.61804386,102180.0,102150.0,0.67194143]
[1734140367999,0.3608,102170.0,102150.0,0.68085553]
[1734140368398,0.409731,102170.0,102150.0,0.41979492]
[1734140368794,0.5012442,102160.0,102140.0,0.57938163]
[1734140369402,0.9020442,102160.0,102150.0,0.16955241]
[1734140369595,0.9020442,102160.0,102140.0,0.57938163]
[1734140369794,0.9020442,102160.0,102140.0,0.58903853]
[1734140370395,0.9020442,102160.0,102150.0,0.01918935]
[1734140370595,0.810536,102160.0,102150.0,0.01918935]
[1734140370796,0.3608,102160.0,102150.0,0.11069755]
[1734140371094,0.14600958,102190.0,102170.0,0.048931]
[1734140371095,0.62361724,102190.0,102170.0,0.048931]
[1734140371302,0.62361724,102190.0,102170.0,0.30998761]
[1734140371498,0.47760766,102190.0,102170.0,0.42362718]
[1734140371812,0.3608,102190.0,102170.0,0.34679898]
[1734140372401,0.61811018,102200.0,102170.0,0.34679898]
[1734140372709,0.50130252,102200.0,102170.0,0.34679898]
[1734140373100,0.0915082,102190.0,102170.0,0.34679898]
[1734140373309,0.50130252,102200.0,102170.0,0.70759898]
[1734140373606,0.50130252,102200.0,102170.0,0.34679898]
[1734140374303,0.3608,102190.0,102170.0,0.34679898]
[1734140374996,0.3608,102190.0,102170.0,0.73830718]
[1734140375302,0.29201916,102220.0,102180.0,0.5927424]
[1734140375504,0.74432736,102220.0,102190.0,0.758]
[1734140375700,0.3608,102210.0,102200.0,0.17150045]
[1734140376209,0.4523082,102210.0,102200.0,0.17150045]
[1734140376400,0.5927284,102210.0,102200.0,0.17150045]
[1734140376706,0.5927284,102210.0,102180.0,0.51094544]
[1734140376901,0.3608,102190.0,102180.0,0.51094544]
[1734140377305,0.6992262,102200.0,102180.0,0.17162345]
[1734140377815,0.8976262,102200.0,102180.0,0.17162345]
[1734140378123,0.3608,102190.0,102180.0,0.17162345]
[1734140378307,0.8976262,102200.0,102180.0,0.17162345]
[1734140378494,0.3608,102190.0,102180.0,0.17162345]
[1734140378802,0.5592,102200.0,102180.0,0.32825996]
[1734140379005,0.5592,102200.0,102190.0,0.17150045]
[1734140379904,0.3608,102200.0,102190.0,0.31192965]
[1734140380106,0.3608,102210.0,102200.0,0.048916]
[1734140380304,0.79437633,102220.0,102200.0,0.44941314]
[1734140380611,0.79437633,102220.0,102200.0,0.22051908]
[1734140380795,0.79437633,102220.0,102200.0,0.44941314]
[1734140380796,0.88588453,102220.0,102200.0,0.44941314]
[1734140381100,0.88588453,102220.0,102200.0,0.22051908]
[1734140381301,0.88588453,102220.0,102200.0,0.44941314]
[1734140381510,0.36226833,102220.0,102200.0,0.44941314]
[1734140381699,0.00146833,102220.0,102210.0,0.22051508]
[1734140383597,0.36226833,102220.0,102210.0,0.22051508]
[1734140383803,0.00146833,102220.0,102210.0,0.22051508]
[1734140384312,0.00146833,102220.0,102210.0,0.31202328]
[1734140384613,0.00146833,102220.0,102210.0,0.55205066]
[1734140385206,0.00146833,102220.0,102210.0,0.74124758]
[1734140385400,0.00146833,102220.0,102210.0,1.00409176]
[1734140385717,0.00146833,102220.0,102210.0,0.83275578]
[1734140385902,0.00146833,102220.0,102210.0,1.00409297]
[1734140386208,0.00146833,102220.0,102210.0,0.83275578]
[1734140386409,0.3608,102240.0,102220.0,0.048902]
[1734140386605,0.3608,102240.0,102230.0,0.238902]
[1734140387309,0.3613,102240.0,102230.0,0.238902]
[1734140388311,0.3608,102240.0,102230.0,0.238902]
[1734140388510,0.36226826,102250.0,102230.0,0.3304102]
[1734140388710,0.36226826,102250.0,102230.0,0.238902]
[1734140389411,0.36276826,102250.0,102230.0,0.24873064]
[1734140390010,0.36276826,102250.0,102230.0,0.60953064]
[1734140390419,0.36226826,102250.0,102230.0,0.60953064]
[1734140390722,0.3608,102240.0,102230.0,0.19982864]
[1734140391022,0.3608,102240.0,102230.0,0.00982864]
[1734140391210,0.4523082,102240.0,102220.0,0.1956]
[1734140391410,0.3608,102230.0,102220.0,0.1956]
[1734140391919,0.3608,102230.0,102220.0,0.244509]
[1734140392115,0.3608,102230.0,102220.0,0.20529365]
[1734140392412,0.5012132,102230.0,102210.0,0.01925451]
[1734140392620,0.3608,102220.0,102210.0,0.01925451]
[1734140393618,0.3608,102220.0,102210.0,0.06816951]
[1734140394004,0.5012202,102220.0,102200.0,0.36689782]
[1734140394211,0.3608,102210.0,102200.0,0.18108109]
[1734140394412,0.04892,102200.0,102190.0,0.17129782]
[1734140394611,0.04892,102200.0,102180.0,0.243751]
[1734140394612,0.40972,102200.0,102180.0,0.604551]
[1734140394809,0.40972,102200.0,102180.0,0.20462005]
[1734140395011,0.40972,102200.0,102180.0,0.35088891]
[1734140395212,0.40972,102200.0,102180.0,0.76061791]
[1734140396320,0.40972,102200.0,102190.0,0.01979433]
[1734140398216,0.04892,102200.0,102190.0,0.01979433]
[1734140398617,0.40972,102200.0,102190.0,0.01979433]
[1734140399515,0.40972,102200.0,102190.0,0.19109215]
[1734140400118,0.04892,102200.0,102190.0,0.01979433]
[1734140400317,0.04892,102200.0,102190.0,0.19109215]
[1734140400612,0.04892,102200.0,102190.0,0.01979433]
[1734140401018,0.04892,102200.0,102190.0,0.19109215]
[1734140402518,0.04892,102200.0,102190.0,0.41998621]
[1734140402914,0.3608,102210.0,102190.0,0.51149441]
[1734140403125,0.3608,102210.0,102200.0,0.17129782]
[1734140403827,0.5012202,102210.0,102200.0,0.17129782]
[1734140404526,0.409712,102210.0,102200.0,0.17129782]
[1734140406426,0.048912,102210.0,102200.0,0.17129782]
[1734140406614,0.409712,102210.0,102200.0,0.17129782]
[1734140406817,0.5012202,102210.0,102200.0,0.17129782]
[1734140407017,0.5012202,102210.0,102190.0,0.53466077]
[1734140407018,0.048917,102200.0,102190.0,0.41998621]
[1734140409323,0.8131082,102210.0,102190.0,0.41998621]
[1734140409324,0.7216,102210.0,102190.0,0.51149441]
[1734140409620,0.770513,102210.0,102200.0,0.17129782]
[1734140410424,0.8620212,102210.0,102200.0,0.17129782]
[1734140411019,0.8620212,102210.0,102190.0,0.41998621]
[1734140411213,0.409717,102200.0,102190.0,0.41998621]
[1734140411723,0.409717,102200.0,102190.0,0.40019188]
[1734140414221,0.5012252,102200.0,102190.0,0.40019188]
[1734140414627,0.5012252,102200.0,102190.0,0.17129782]
[1734140415421,0.048922,102190.0,102180.0,0.62428744]
[1734140415635,0.409722,102190.0,102180.0,0.62428744]
[1734140419425,0.409722,102190.0,102180.0,0.45298962]
[1734140420532,0.5012302,102190.0,102180.0,0.22901706]
[1734140420832,0.5012302,102190.0,102180.0,0.000123]
[1734140422229,0.8927384,102190.0,102180.0,0.000123]
[1734140422433,1.00954606,102190.0,102180.0,0.000123]
[1734140422740,0.048932,102170.0,102160.0,1.09759392]
[1734140423033,0.5012402,102170.0,102160.0,0.83127695]
[1734140423228,0.5012402,102170.0,102160.0,0.62992154]
[1734140423229,0.8620402,102170.0,102160.0,0.62992154]
[1734140423435,1.4472402,102170.0,102160.0,0.45783698]
[1734140423726,1.4472402,102170.0,102160.0,0.22894292]
[1734140424234,1.56404786,102170.0,102160.0,0.22894292]
[1734140424833,1.4472402,102170.0,102160.0,0.22894292]
[1734140425529,1.355732,102170.0,102160.0,0.27787892]
[1734140425730,1.4472402,102170.0,102160.0,0.27787892]
[1734140426729,1.4472402,102170.0,102160.0,0.22894292]
[1734140428543,0.048936,102160.0,102150.0,0.22102456]
[1734140428739,0.5012442,102160.0,102150.0,0.22102456]
[1734140429240,0.1404442,102160.0,102150.0,0.22102456]
[1734140429431,0.4523082,102170.0,102150.0,0.22102456]
[1734140429638,0.409733,102170.0,102160.0,0.048936]
[1734140429832,0.048933,102170.0,102160.0,0.449736]
[1734140430236,0.048933,102170.0,102160.0,0.4008]
[1734140430237,0.5012412,102170.0,102160.0,0.4008]
[1734140432636,0.5012412,102170.0,102150.0,0.40097862]
[1734140432843,0.048937,102160.0,102150.0,0.17208456]
[1734140433332,0.409733,102170.0,102150.0,1.14919484]
[1734140433539,0.048933,102170.0,102150.0,1.3780889]
[1734140435339,0.048933,102170.0,102160.0,0.17208456]
[1734140436540,0.409728,102180.0,102160.0,0.53288456]
[1734140436843,0.048928,102180.0,102170.0,0.1998]
[1734140437048,0.048928,102180.0,102170.0,0.37188456]
[1734140438447,0.36239483,102190.0,102170.0,0.60077862]
[1734140438645,0.36239483,102190.0,102180.0,0.4686082]
[1734140438844,0.36239483,102190.0,102180.0,1.27931382]
[1734140438845,0.00012605,102190.0,102180.0,1.27931382]
[1734140439062,0.00012605,102190.0,102180.0,1.39320164]
[1734140439545,0.00012605,102190.0,102180.0,1.61690613]
[1734140439750,0.3608,102210.0,102190.0,0.04892]
[1734140439944,0.3608,102210.0,102190.0,0.54084005]
[1734140440143,0.4523082,102210.0,102190.0,0.51062534]
[1734140440351,0.5012252,102200.0,102190.0,0.17160508]
[1734140440651,0.409717,102200.0,102190.0,0.17160508]
[1734140441050,0.409717,102200.0,102180.0,0.78371185]
[1734140442042,0.048922,102190.0,102180.0,0.78371185]
[1734140442242,0.409722,102190.0,102180.0,0.55490508]
[1734140442454,0.5012302,102190.0,102180.0,0.17160508]
[1734140442648,0.048927,102180.0,102170.0,0.40041185]
[1734140442849,0.048927,102180.0,102170.0,0.60713621]
[1734140443151,0.44702886,102210.0,102170.0,1.39187817]
[1734140443152,0.47760766,102210.0,102170.0,1.39187817]
[1734140443347,0.3608,102210.0,102200.0,0.31209022]
[1734140443656,0.3608,102220.0,102200.0,1.01109652]
[1734140443958,0.409705,102230.0,102210.0,0.70438522]
[1734140444146,0.3608,102220.0,102210.0,0.36876502]
[1734140444346,0.3613,102230.0,102210.0,0.1971]
[1734140444551,0.3608,102220.0,102210.0,0.1971]
[1734140444742,0.048908,102220.0,102200.0,0.595744]
[1734140444945,0.5012212,102210.0,102200.0,0.17152715]
[1734140445656,0.5012212,102210.0,102200.0,7.221e-05]
[1734140446347,0.409713,102210.0,102200.0,7.221e-05]
[1734140449257,0.5012212,102210.0,102200.0,7.221e-05]
[1734140454061,0.409713,102210.0,102200.0,0.04899021]
[1734140455462,0.409713,102210.0,102200.0,7.221e-05]
[1734140456252,0.42235354,102240.0,102220.0,0.048905]
[1734140456253,0.0508671,102240.0,102220.0,0.048905]
[1734140456456,0.0508671,102240.0,102220.0,0.5012132]
[1734140456457,0.0503671,102240.0,102220.0,0.5012132]
[1734140456652,0.0503671,102240.0,102230.0,0.048903]
[1734140457059,0.0503671,102240.0,102230.0,0.58116612]
[1734140458656,0.0503671,102240.0,102230.0,0.53226312]
[1734140458847,0.0992691,102240.0,102220.0,0.80997589]
[1734140459052,0.048903,102230.0,102220.0,0.53226312]
[1734140460553,0.0503671,102240.0,102220.0,0.67267732]
[1734140460865,0.0503671,102240.0,102220.0,0.68792072]
[1734140461355,0.1418753,102240.0,102220.0,0.53226312]
[1734140461548,0.0915082,102230.0,102210.0,1.13516989]
[1734140461748,0.048908,102220.0,102210.0,0.90496312]
[1734140461953,0.048908,102220.0,102210.0,0.71986312]
[1734140465558,0.048908,102220.0,102210.0,0.94866989]
[1734140465759,0.048908,102220.0,102210.0,0.58786989]
[1734140465953,0.048908,102220.0,102210.0,0.94866989]
[1734140467462,0.048904,102230.0,102210.0,1.08909109]
[1734140469259,0.048904,102230.0,102210.0,1.04017809]
[1734140469456,0.048908,102220.0,102210.0,0.94866989]
[1734140470250,0.234508,102220.0,102210.0,0.40026989]
[1734140470457,0.234508,102220.0,102210.0,0.17146312]
[1734140470761,0.048915,102210.0,102200.0,0.62641071]
[1734140471061,0.048915,102210.0,102200.0,0.18190944]
[1734140471758,0.409715,102210.0,102200.0,0.18190944]
[1734140472163,0.409715,102210.0,102200.0,0.01014699]
[1734140472762,0.409715,102210.0,102200.0,7.221e-05]
[1734140472967,0.5012232,102210.0,102200.0,7.221e-05]
[1734140481169,0.5012232,102210.0,102200.0,0.04899221]
[1734140482765,0.5012232,102210.0,102200.0,7.221e-05]
[1734140483073,0.048915,102210.0,102200.0,7.221e-05]
[1734140483370,0.048915,102210.0,102200.0,0.22075466]
[1734140483961,0.84547093,102220.0,102200.0,0.22075466]
[1734140484162,0.595313,102220.0,102200.0,0.22075166]
[1734140484364,0.595313,102220.0,102200.0,0.60855166]
[1734140484763,0.595313,102220.0,102200.0,1.24707443]
[1734140485070,0.409713,102220.0,102200.0,1.39817858]
[1734140485261,0.409713,102220.0,102200.0,1.30667038]
[1734140485456,0.5012212,102220.0,102200.0,1.19815743]
[1734140486666,0.5012232,102210.0,102200.0,0.17183466]
[1734140487062,0.5012232,102210.0,102200.0,7.221e-05]
[1734140487265,0.8913232,102210.0,102200.0,0.17183466]
[1734140487473,0.8913232,102210.0,102200.0,7.221e-05]
[1734140488971,0.88747975,102210.0,102200.0,7.221e-05]
[1734140489269,1.53629361,102210.0,102180.0,0.40056922]
[1734140489465,0.8620332,102190.0,102180.0,0.40056922]
[1734140489667,0.8620332,102190.0,102170.0,0.40056922]
[1734140489866,0.41837054,102180.0,102170.0,0.22069645]
[1734140490069,0.5012382,102180.0,102170.0,0.22069645]
[1734140490573,0.40973,102180.0,102170.0,0.17176245]
[1734140490772,0.5012382,102180.0,102170.0,0.17176245]
[1734140491272,0.40973,102180.0,102170.0,0.17176245]
[1734140491473,0.5012382,102180.0,102160.0,1.4182254]
[1734140492080,0.40973,102180.0,102170.0,0.17176245]
[1734140492774,0.40973,102180.0,102160.0,1.4177254]
[1734140492775,0.5012382,102180.0,102160.0,1.4177254]
[1734140493073,0.1404382,102180.0,102160.0,1.4177254]
[1734140493575,0.1404382,102180.0,102170.0,0.17176245]
[1734140494163,0.4523082,102190.0,102170.0,0.17176245]
[1734140494372,0.4523082,102190.0,102170.0,0.92260444]
[1734140494373,0.048926,102190.0,102170.0,0.92260444]
[1734140494672,0.048926,102190.0,102170.0,0.81030322]
[1734140494673,0.5012342,102190.0,102170.0,0.81030322]
[1734140496175,0.409726,102190.0,102170.0,0.81030322]
[1734140496477,0.5012342,102190.0,102180.0,0.17176245]
[1734140496975,0.5012342,102190.0,102170.0,0.40056922]
[1734140497273,0.1404382,102180.0,102170.0,0.17176245]
[1734140498168,0.04893,102180.0,102170.0,0.17176245]
[1734140498779,0.04893,102180.0,102170.0,0.40056922]
[1734140499473,0.04893,102180.0,102170.0,0.22880677]
[1734140501168,0.58899464,102190.0,102170.0,0.22880677]
[1734140501369,0.5012342,102190.0,102180.0,0.17210639]
[1734140504586,0.5012342,102190.0,102170.0,0.40091316]
[1734140505185,0.5927464,102180.0,102170.0,0.40091316]
[1734140505396,0.5927464,102180.0,102170.0,0.40093744]
[1734140505582,0.5927464,102180.0,102170.0,0.17213067]
[1734140505583,0.9791464,102180.0,102170.0,0.17213067]
[1734140506296,0.9302164,102180.0,102160.0,0.77142456]
[1734140506493,0.1404432,102170.0,102160.0,0.77142456]
[1734140507910,0.3427432,102170.0,102160.0,0.77142456]
[1734140508507,0.3427432,102170.0,102160.0,0.18181779]
[1734140508712,0.7035432,102170.0,102160.0,0.18181779]
[1734140511508,0.7036163,102170.0,102160.0,0.17213067]
[1734140511713,0.048939,102160.0,102150.0,0.40106368]
[1734140512014,0.5012472,102160.0,102150.0,0.18231671]
[1734140512400,0.5012472,102160.0,102150.0,0.00012624]
[1734140512904,0.8628472,102160.0,102150.0,0.00012624]
[1734140513106,0.048944,102150.0,102140.0,0.0005]
[1734140513309,0.9952604,102150.0,102140.0,0.0005]
[1734140513614,0.048949,102140.0,102130.0,0.36203067]
[1734140513814,0.048949,102140.0,102130.0,1.00059144]
[1734140514009,0.048949,102140.0,102130.0,0.76173744]
[1734140514213,0.048949,102140.0,102130.0,0.40093744]
[1734140514214,0.5012572,102140.0,102130.0,0.40093744]
[1734140514513,0.6992572,102140.0,102130.0,0.0005]
[1734140515103,0.3384572,102140.0,102130.0,0.17263067]
[1734140515301,0.3384572,102140.0,102130.0,0.18261964]
[1734140515505,0.3384572,102140.0,102130.0,0.18211964]
[1734140515707,0.3384572,102140.0,102130.0,0.17213067]
[1734140516311,0.69936847,102140.0,102130.0,0.17213067]
[1734140516515,0.048954,102130.0,102110.0,0.40106186]
[1734140516813,0.9544144,102120.0,102110.0,0.00012442]
[1734140517004,0.5936144,102120.0,102110.0,0.00012442]
[1734140517220,0.048963,102110.0,102100.0,0.1]
[1734140517503,0.6929712,102110.0,102080.0,1.04770982]
[1734140517702,0.1404812,102090.0,102080.0,0.68690982]
[1734140517915,0.048973,102090.0,102080.0,0.51477915]
[1734140518213,0.5012812,102090.0,102080.0,0.22880677]
[1734140518414,0.5012812,102090.0,102070.0,1.17075059]
[1734140518713,0.5012772,102100.0,102080.0,0.3608]
[1734140518916,0.5012772,102100.0,102080.0,0.17213067]
[1734140520511,0.1404812,102090.0,102080.0,0.17213067]
[1734140520921,0.5012812,102090.0,102080.0,0.17213067]
[1734140521512,0.59289881,102090.0,102080.0,0.17213067]
[1734140521815,0.048982,102070.0,102060.0,0.51486953]
[1734140522016,0.5012902,102070.0,102060.0,0.52459304]
[1734140523520,0.5012902,102070.0,102060.0,0.00981389]
[1734140524020,0.1404902,102070.0,102060.0,0.00981389]
[1734140524318,0.5012902,102070.0,102060.0,0.00981389]
[1734140525421,0.5012902,102070.0,102060.0,9.038e-05]
[1734140531420,0.5927984,102070.0,102060.0,9.038e-05]
[1734140531612,0.5012902,102070.0,102060.0,0.00059038]
[1734140532515,0.5012902,102070.0,102060.0,9.038e-05]
[1734140533614,0.5012902,102070.0,102060.0,0.00059038]
[1734140534617,0.5012902,102070.0,102060.0,9.038e-05]
[1734140534818,0.5927984,102070.0,102060.0,9.038e-05]
[1734140535018,0.5012902,102070.0,102060.0,9.038e-05]
[1734140535419,0.5927984,102070.0,102060.0,9.038e-05]
[1734140535620,0.5012902,102070.0,102060.0,9.038e-05]
[1734140536021,0.51121278,102070.0,102060.0,9.038e-05]
[1734140538824,0.1404902,102070.0,102060.0,0.04907738]
[1734140539021,0.5012862,102080.0,102060.0,0.24317738]
[1734140539323,0.04908341,102090.0,102070.0,0.795879]
[1734140539622,0.00010941,102090.0,102080.0,0.3608]
[1734140539924,0.09161761,102090.0,102080.0,0.409778]
[1734140540129,0.09161761,102090.0,102080.0,0.3608]
[1734140540425,0.14059061,102090.0,102070.0,0.795882]
[1734140540626,0.1404862,102080.0,102070.0,0.7469]
[1734140540813,0.1404862,102080.0,102070.0,0.3861]
[1734140541421,0.5012862,102080.0,102070.0,0.3861]
[1734140541924,0.048982,102070.0,102060.0,0.19419038]
[1734140542227,0.1404902,102070.0,102060.0,0.19419038]
[1734140542627,0.5012902,102070.0,102060.0,0.19419038]
[1734140542819,0.5012902,102070.0,102060.0,9.038e-05]
[1734140543722,0.58905064,102070.0,102060.0,9.038e-05]
[1734140545427,0.7058583,102070.0,102060.0,9.038e-05]
[1734140546433,0.61809786,102070.0,102060.0,9.038e-05]
[1734140546937,0.76410744,102070.0,102060.0,9.038e-05]
[1734140549435,0.64729978,102070.0,102040.0,0.23882276]
[1734140549622,0.64729978,102070.0,102040.0,0.22880677]
[1734140549623,0.048992,102050.0,102040.0,0.22880677]
[1734140550430,0.58922269,102050.0,102030.0,1.10637805]
[1734140550737,0.04907389,102040.0,102030.0,0.80910677]
[1734140550932,0.04907389,102040.0,102030.0,0.85193248]
[1734140551233,0.40987389,102040.0,102030.0,0.85193248]
[1734140551431,0.40987389,102040.0,102030.0,0.66013248]
[1734140551832,0.40987389,102040.0,102030.0,0.27163248]
[1734140552137,0.58930458,102040.0,102030.0,0.00999752]
[1734140552330,0.049002,102030.0,102020.0,0.22892935]
[1734140552528,0.409802,102030.0,102020.0,0.27175506]
[1734140552930,0.5013102,102030.0,102020.0,0.27175506]
[1734140553129,0.5013102,102030.0,102020.0,0.04294829]
[1734140553326,0.1405102,102030.0,102020.0,0.04294829]
[1734140553730,0.1405102,102030.0,102020.0,0.22892935]
[1734140553930,0.049002,102030.0,102020.0,0.78677503]
[1734140554231,0.1405102,102030.0,102020.0,0.78847694]
[1734140554430,0.5013102,102030.0,102020.0,0.51660364]
[1734140554634,0.7877184,102030.0,102020.0,0.51660364]
[1734140554833,0.7877184,102030.0,102020.0,0.28609496]
[1734140555234,0.7877184,102030.0,102020.0,0.00012258]
[1734140555435,1.0877184,102030.0,102020.0,0.00012258]
[1734140556029,0.049006,102020.0,102010.0,0.00981084]
[1734140556230,0.085711,102010.0,102000.0,0.01039234]
[1734140556534,0.049021,101990.0,101980.0,0.04289538]
[1734140556834,0.04903,101970.0,101960.0,1.41989986]
[1734140557036,0.0491414,101970.0,101960.0,1.46280296]
[1734140557238,0.0491414,101970.0,101960.0,1.25233772]
[1734140557441,0.0491414,101970.0,101960.0,0.4527381]
[1734140557639,0.0001114,101970.0,101960.0,0.4527381]
[1734140557836,0.0001114,101970.0,101960.0,1.10555739]
[1734140558146,0.11722999,101990.0,101980.0,0.049025]
[1734140558340,0.11722999,101990.0,101980.0,0.409825]
[1734140558642,0.11722999,101990.0,101980.0,0.55771641]
[1734140558946,0.11722999,101990.0,101980.0,0.794325]
[1734140559142,0.11730322,101990.0,101980.0,0.794325]
[1734140559441,0.11730322,101990.0,101980.0,1.10419096]
[1734140559945,0.11730322,101990.0,101980.0,0.80419096]
[1734140560344,0.11730322,101990.0,101980.0,1.66253781]
[1734140561343,0.11730322,101990.0,101980.0,1.73789916]
[1734140561841,0.11730322,101990.0,101980.0,1.64639096]
[1734140562237,7.323e-05,101990.0,101980.0,1.64639096]
[1734140563045,7.323e-05,101990.0,101980.0,1.34639096]
[1734140563437,7.323e-05,101990.0,101980.0,1.29736596]
[1734140563649,0.04909123,101990.0,101980.0,1.29736596]
[1734140564042,7.323e-05,101990.0,101980.0,1.43789716]
[1734140564239,7.323e-05,101990.0,101980.0,1.29736596]
[1734140564649,0.04909123,101990.0,101980.0,1.2875]
[1734140564949,0.04909123,101990.0,101980.0,0.5659]
[1734140565148,0.04909123,101990.0,101980.0,0.9267]
[1734140565550,0.04909123,101990.0,101980.0,0.9272]
[1734140566145,7.323e-05,101990.0,101980.0,0.9272]
[1734140566449,7.323e-05,101990.0,101980.0,0.976223]
[1734140566647,7.323e-05,101990.0,101980.0,0.975723]
[1734140567554,7.323e-05,101990.0,101980.0,0.976223]
[1734140568151,0.14059943,101990.0,101980.0,0.3613]
[1734140568447,0.44059943,101990.0,101980.0,0.0005]
[1734140568651,0.049028,101970.0,101950.0,0.36090277]
[1734140568953,0.049028,101970.0,101950.0,0.40380587]
[1734140568954,0.1405402,101960.0,101950.0,0.40380587]
[1734140569139,0.1405402,101960.0,101950.0,0.04300587]
[1734140569454,0.3268402,101960.0,101950.0,0.00010277]
[1734140570347,0.32695946,101960.0,101950.0,0.36090277]
[1734140570747,0.27792746,101960.0,101950.0,0.40993977]
[1734140571752,0.18641926,101960.0,101950.0,0.40993977]
[1734140571952,0.00011926,101960.0,101950.0,0.40993977]
[1734140572655,0.00011926,101960.0,101950.0,0.50144797]
[1734140572844,0.00011926,101960.0,101950.0,0.40993977]
[1734140574543,0.00011926,101960.0,101950.0,0.41043977]
[1734140574747,0.00011926,101960.0,101950.0,0.00060277]
[1734140574947,0.00011926,101960.0,101950.0,0.36140277]
[1734140575150,0.50145946,101960.0,101950.0,0.00060277]
[1734140575349,0.89865946,101960.0,101950.0,0.00060277]
[1734140575653,0.89865946,101960.0,101950.0,0.00010277]
[1734140576155,0.40995126,101960.0,101950.0,0.00010277]
[1734140576857,0.50145946,101960.0,101950.0,0.00010277]
[1734140577848,0.00011926,101960.0,101950.0,0.04913977]
[1734140578054,0.00011926,101960.0,101950.0,0.40993977]
[1734140578655,0.09162746,101960.0,101950.0,0.00010277]
[1734140578862,0.50145946,101960.0,101950.0,0.00010277]
[1734140584753,0.00011926,101960.0,101950.0,0.50144797]
[1734140585269,0.00011926,101960.0,101950.0,0.61143977]
[1734140585652,0.00011926,101960.0,101950.0,0.70294797]
[1734140586457,0.00011926,101960.0,101950.0,1.00294797]
[1734140586661,0.04902,101990.0,101970.0,0.049024]
[1734140586967,0.04902,101990.0,101980.0,0.3608]
[1734140587261,0.6103854,102000.0,101980.0,0.409822]
[1734140587454,0.00862691,101990.0,101980.0,0.409822]
[1734140587656,8.225e-05,101990.0,101980.0,0.409822]
[1734140588068,8.225e-05,101990.0,101980.0,0.5013302]
[1734140588261,8.225e-05,101990.0,101980.0,0.6975302]
[1734140588866,8.225e-05,101990.0,101980.0,0.606022]
[1734140590068,8.225e-05,101990.0,101980.0,0.6975302]
[1734140590563,8.225e-05,101990.0,101980.0,0.9975302]
[1734140590769,8.225e-05,101990.0,101980.0,1.23464058]
[1734140590962,8.225e-05,101990.0,101980.0,1.62847726]
[1734140591162,0.0014714,102000.0,101980.0,2.14466566]
[1734140591361,0.0014714,102000.0,101990.0,0.8682262]
[1734140591567,0.6874092,102030.0,102000.0,0.049013]
[1734140591770,0.0088138,102020.0,102010.0,0.5013162]
[1734140592062,0.049001,102030.0,102010.0,0.5013162]
[1734140592063,0.409801,102030.0,102010.0,0.409808]
[1734140592268,0.00893071,102020.0,102000.0,0.409812]
[1734140592465,7.752e-05,102020.0,102010.0,0.5013162]
[1734140592765,7.752e-05,102020.0,102010.0,0.605008]
[1734140594469,7.752e-05,102020.0,102010.0,0.6965162]
[1734140595764,0.00057752,102020.0,102010.0,1.10287219]
[1734140596073,0.00147138,102040.0,102030.0,0.048999]
[1734140596262,0.40978,102070.0,102040.0,0.048992]
[1734140596464,0.00860894,102060.0,102040.0,0.6899002]
[1734140596664,0.5012882,102070.0,102040.0,0.6899002]
[1734140596864,0.00870008,102060.0,102040.0,0.6899002]
[1734140597068,9.867e-05,102060.0,102040.0,0.598392]
[1734140597374,0.50139187,102060.0,102040.0,0.3608]
[1734140598168,0.36089867,102060.0,102040.0,0.409793]
[1734140598564,0.36089867,102060.0,102040.0,0.5013012]
[1734140598765,0.36089867,102060.0,102040.0,0.409793]
[1734140600278,9.867e-05,102060.0,102040.0,0.4523082]
[1734140600466,9.867e-05,102060.0,102050.0,0.048989]
[1734140600665,9.867e-05,102060.0,102050.0,0.5012972]
[1734140600871,9.867e-05,102060.0,102050.0,0.8758972]
[1734140601274,9.867e-05,102060.0,102050.0,0.98753077]
[1734140601474,9.867e-05,102060.0,102050.0,1.28753077]
[1734140602774,0.00147023,102090.0,102050.0,1.64678806]
[1734140603077,0.00147023,102090.0,102080.0,0.8620832]
[1734140604176,0.00151955,102090.0,102080.0,0.8620832]
[1734140605281,0.00151955,102090.0,102080.0,0.770575]
[1734140606077,0.00151955,102090.0,102080.0,0.3608]
[1734140606576,0.05048955,102090.0,102080.0,0.3608]
[1734140607685,0.05048955,102090.0,102070.0,0.409778]
[1734140608486,0.05048955,102090.0,102070.0,0.41747971]
[1734140609680,0.00151955,102090.0,102080.0,0.3608]
[1734140609881,0.05048955,102090.0,102070.0,0.409779]
[1734140610176,0.00151955,102090.0,102080.0,0.409775]
[1734140610382,0.00151955,102090.0,102080.0,0.54790567]
[1734140610578,4.932e-05,102090.0,102080.0,0.95949391]
[1734140610781,0.1,102100.0,102090.0,0.04897]
[1734140611082,0.1,102100.0,102090.0,0.95995092]
[1734140611787,0.1,102100.0,102090.0,0.97467092]
[1734140612095,0.1,102100.0,102090.0,0.67467092]
[1734140612383,0.1,102100.0,102090.0,0.65995092]
[1734140612685,0.1,102100.0,102090.0,0.97467092]
[1734140614680,0.1005,102100.0,102090.0,0.97467092]
[1734140614881,0.1005,102100.0,102090.0,0.68264562]
[1734140615683,0.1005,102100.0,102090.0,0.98264562]
[1734140616084,0.1946,102140.0,102130.0,0.048951]
[1734140616285,0.3861,102140.0,102130.0,0.409751]
[1734140616481,0.7469,102140.0,102120.0,0.048953]
[1734140616687,0.00890371,102130.0,102120.0,0.048953]
[1734140616990,0.7469,102140.0,102120.0,0.097905]
[1734140617185,0.1915,102140.0,102120.0,0.409752]
[1734140617381,0.00146934,102150.0,102130.0,0.54788167]
[1734140617580,0.00146934,102150.0,102140.0,0.3608]
[1734140617780,0.56595248,102190.0,102170.0,0.048932]
[1734140617989,0.00892289,102180.0,102170.0,0.048932]